bitfinex-derivatives/quotes_ETHF0:USTF0_20210407
["timestamp","ask_amount","ask_price","bid_price","bid_amount"]
[1617758785092,13.0197,2085.2,2083.6,37.98]
[1617758785293,14.1197,2085.2,2083.6,37.98]
[1617758785493,2.0538,2085.2,2083.6,37.98]
[1617758785693,1.1,2085.2,2083.6,37.98]
[1617758786493,2.0,2085.9,2083.6,37.98]
[1617758786694,1.1,2085.4,2083.6,37.98]
[1617758786892,2.0,2085.9,2083.6,37.98]
[1617758786893,34.5489,2085.9,2083.6,37.98]
[1617758787093,34.5489,2085.9,2083.6,35.98]
[1617758787295,34.5489,2085.9,2083.6,5.98]
[1617758787696,2.8971391,2083.7,2083.6,5.98]
[1617758787896,5.8037391,2083.7,2083.0,30.0]
[1617758788497,5.8037391,2083.7,2083.1,5.87]
[1617758789697,2.90695,2083.2,2083.1,5.87]
[1617758790602,2.2369,2084.3,2083.1,35.87]
[1617758790801,3.3369,2084.3,2083.1,30.0]
[1617758791199,3.3369,2084.3,2083.2,5.77]
[1617758791406,3.3369,2084.3,2083.3,32.0]
[1617758791600,2.90695,2084.1,2083.6,2.90695]
[1617758791801,2.90695,2084.1,2083.6,32.90695]
[1617758792001,2.90695,2084.1,2083.7,5.76]
[1617758792402,2.90695,2084.1,2083.1,30.0]
[1617758793001,2.90695,2084.1,2079.4,12.5069]
[1617758793200,2.90695,2084.1,2083.2,5.97]
[1617758793600,2.90695,2084.1,2082.6,30.0]
[1617758793601,2.90695,2083.3,2083.1,2.90695]
[1617758794003,2.90695,2083.3,2083.2,5.78]
[1617758796804,2.90695,2083.3,2083.2,7.7253]
[1617758798304,1.1,2084.3,2083.2,7.7253]
[1617758799705,2.90695,2083.3,2083.2,7.7253]
[1617758801809,2.90695,2083.3,2083.2,40.63225]
[1617758802810,2.90695,2083.3,2083.2,4.85225]
[1617758803010,2.90695,2083.3,2083.2,2.90695]
[1617758803811,2.90695,2083.3,2083.2,8.77695]
[1617758804010,1.1,2084.3,2083.2,38.77695]
[1617758804212,1.1,2084.3,2083.2,40.63475]
[1617758804812,1.1,2084.3,2083.2,10.63475]
[1617758805216,1.1,2084.3,2083.2,8.77695]
[1617758805817,2.90695,2083.3,2083.2,8.77695]
[1617758806919,2.90695,2083.3,2083.2,2.90695]
[1617758807119,2.90695,2083.3,2082.0,30.0]
[1617758807521,5.44155,2083.3,2082.0,30.0]
[1617758807719,2.5346,2083.3,2082.5,2.90695]
[1617758808320,2.5346,2083.3,2082.6,5.9]
[1617758808719,2.5346,2083.3,2082.1,30.0]
[1617758809519,2.5346,2083.3,2082.2,5.81]
[1617758809719,2.90695,2082.3,2082.2,5.81]
[1617758810119,2.5346,2083.3,2082.2,35.81]
[1617758810319,1.1,2084.1,2082.2,35.81]
[1617758811120,4.0729,2084.1,2082.2,35.81]
[1617758811320,34.0729,2084.1,2082.2,36.7753]
[1617758811722,2.90695,2082.3,2082.2,6.7753]
[1617758811925,5.49685,2082.3,2082.2,5.81]
[1617758812322,2.5899,2082.3,2082.2,5.81]
[1617758813124,4.5434,2083.5,2082.2,5.81]
[1617758813324,2.5434,2083.5,2082.2,5.81]
[1617758813526,3.1,2084.0,2082.2,5.81]
[1617758813725,3.1,2084.0,2082.5,2.90695]
[1617758813924,3.1,2084.0,2082.2,5.81]
[1617758814125,3.1,2084.0,2081.8,5.98]
[1617758814326,3.1,2084.0,2082.0,2.0]
[1617758814527,3.1,2084.0,2081.9,30.0]
[1617758814723,3.1,2084.0,2082.0,6.01]
[1617758814724,2.0,2083.8,2082.0,6.01]
[1617758814925,30.0,2083.7,2081.1,30.0]
[1617758815125,33.1,2083.7,2081.1,30.0]
[1617758815326,33.1,2083.7,2079.7,2.5218]
[1617758815724,33.1,2083.7,2081.3,2.90695]
[1617758816328,33.1,2083.7,2081.4,0.07]
[1617758816727,33.1,2083.7,2081.3,2.90695]
[1617758817129,33.1,2083.7,2081.1,0.02]
[1617758817327,33.1,2083.7,2081.4,5.76]
[1617758817627,33.1,2083.7,2081.1,0.02]
[1617758817827,33.1,2083.7,2081.2,2.90695]
[1617758818928,33.1,2083.7,2081.3,5.8]
[1617758819327,33.1,2083.7,2081.1,0.02]
[1617758819929,2.90695,2081.2,2081.1,0.02]
[1617758820130,5.32345,2081.2,2081.1,0.02]
[1617758820329,35.32345,2081.2,2078.2,30.0]
[1617758820529,2.0,2081.1,2078.8,2.0]
[1617758820731,6.42345,2081.2,2078.9,30.0]
[1617758821132,6.42345,2081.2,2079.0,5.95]
[1617758821331,2.0,2081.1,2079.1,30.0]
[1617758821535,33.1,2081.1,2079.2,0.5]
[1617758821732,3.1,2081.1,2079.2,0.5]
[1617758821932,2.90695,2079.3,2079.2,3.40695]
[1617758822131,2.90695,2079.3,2079.2,2.90695]
[1617758822532,5.58665,2079.3,2077.3,5.06069305]
[1617758822731,5.58665,2079.3,2077.4,2.0]
[1617758822937,2.6797,2079.3,2077.4,37.9]
[1617758823135,1.1,2080.5,2077.4,37.9]
[1617758823836,1.1,2080.5,2080.4,2.90695]
[1617758824037,0.02748791,2082.9,2080.4,4.76095]
[1617758824235,1.1,2081.3,2080.4,10.55095]
[1617758824439,1.1,2081.3,2080.4,40.55095]
[1617758824837,2.0,2082.8,2080.4,40.55095]
[1617758825035,2.0,2082.8,2080.5,2.0]
[1617758825235,2.0,2082.8,2080.7,2.0]
[1617758825436,3.1,2082.8,2080.8,30.0]
[1617758825637,14.7229,2083.0,2080.9,5.81]
[1617758825837,1.1,2082.8,2081.7,2.90695]
[1617758826037,1.1,2082.8,2081.7,35.33955]
[1617758826236,1.1,2082.8,2081.8,5.89]
[1617758826436,1.1,2082.8,2081.9,30.0]
[1617758826635,1.1,2082.8,2082.0,5.84]
[1617758826836,1.1,2082.8,2082.0,35.84]
[1617758827237,1.1,2082.8,2082.0,30.0]
[1617758827438,1.1,2082.8,2081.8,5.88]
[1617758827637,1.1,2082.8,2082.1,5.82]
[1617758827835,2.90695,2082.2,2081.8,6.0]
[1617758828236,2.90695,2082.2,2081.7,5.33955]
[1617758828638,2.90695,2082.2,2081.8,6.04]
[1617758828837,2.90695,2082.2,2081.8,36.04]
[1617758829036,1.1,2082.8,2081.8,36.04]
[1617758829637,1.1,2082.8,2081.8,38.04]
[1617758829836,1.1,2082.8,2082.5,2.90695]
[1617758830039,1.1,2082.8,2082.5,5.12615]
[1617758830237,1.1,2082.8,2082.5,2.2192]
[1617758830437,1.1,2082.8,2082.6,6.01]
[1617758831840,2.90695,2083.2,2082.7,4.90695]
[1617758832041,2.90695,2083.2,2082.8,30.0]
[1617758832243,2.90695,2083.2,2082.9,5.8]
[1617758832442,2.90695,2083.2,2083.0,30.0]
[1617758832643,2.90695,2083.2,2083.1,5.77]
[1617758833943,2.90695,2083.2,2083.1,38.67695]
[1617758834543,2.90695,2083.2,2083.1,8.67695]
[1617758834743,2.90695,2083.2,2083.1,2.90695]
[1617758834943,2.90695,2083.2,2082.5,32.2192]
[1617758835145,2.90695,2083.2,2082.5,2.2192]
[1617758835343,2.90695,2083.2,2081.8,2.0]
[1617758835743,2.90695,2083.2,2082.6,5.77]
[1617758835946,2.90695,2083.2,2083.0,2.90695]
[1617758836346,2.90695,2083.2,2083.1,3.23]
[1617758836546,2.90695,2083.2,2083.1,6.2492]
[1617758837946,2.90695,2083.6,2083.1,6.2492]
[1617758838146,2.90695,2083.6,2083.1,36.2492]
[1617758838347,14.6116,2084.2,2083.1,36.2492]
[1617758839950,14.6116,2084.2,2083.5,2.90695]
[1617758840352,1.1,2084.2,2083.6,5.95]
[1617758840549,1.1,2084.2,2083.6,8.0168]
[1617758841651,1.1,2084.2,2083.6,38.0168]
[1617758842052,1.1,2084.2,2084.0,2.90695]
[1617758842252,1.1,2084.2,2084.1,5.79]
[1617758842452,1.1,2084.2,2084.1,8.2149]
[1617758842652,1.1,2084.2,2084.1,38.2149]
[1617758842854,13.3743,2085.6,2084.1,38.2149]
[1617758843054,1.1,2084.7,2084.1,38.2149]
[1617758843252,14.4743,2085.6,2084.1,38.2149]
[1617758843452,1.1,2084.7,2084.1,38.2149]
[1617758844053,1.1,2084.7,2084.6,2.90695]
[1617758844252,1.1,2084.7,2084.6,35.32945]
[1617758844452,1.1,2084.7,2084.6,41.20945]
[1617758845154,2.90695,2084.8,2084.6,41.20945]
[1617758845553,2.90695,2084.8,2084.6,11.20945]
[1617758845955,2.90695,2084.8,2084.6,5.32945]
[1617758846354,2.90695,2084.8,2084.6,2.4225]
[1617758846555,2.90695,2084.8,2084.7,5.86]
[1617758846955,2.90695,2084.8,2084.1,2.4249]
[1617758847159,2.90695,2084.8,2083.6,34.0668]
[1617758847355,2.90695,2084.8,2083.6,32.0668]
[1617758847958,5.8858,2085.1,2083.8,2.90695]
[1617758848155,1.1,2084.8,2083.8,2.90695]
[1617758848557,1.1,2084.8,2081.7,2.4255]
[1617758848558,1.1,2084.8,2082.1,2.0]
[1617758848755,1.1,2084.8,2082.3,2.0]
[1617758848955,1.1,2084.8,2082.4,30.0]
[1617758849158,1.1,2084.8,2082.5,2.91]
[1617758849355,1.1,2084.8,2082.6,30.0]
[1617758849556,1.1,2084.8,2082.7,0.16]
[1617758849956,2.90695,2082.8,2082.7,0.16]
[1617758850156,5.06715,2082.8,2082.7,0.16]
[1617758850855,2.1602,2082.8,2082.7,0.16]
[1617758851255,4.0927,2084.4,2082.7,0.16]
[1617758852056,2.90695,2082.8,2082.7,0.16]
[1617758852456,5.50845,2082.8,2082.7,0.16]
[1617758852655,5.50845,2082.8,2080.9,2.0]
[1617758852856,5.50845,2082.8,2080.2,6.20544346]
[1617758852857,5.50845,2082.8,2081.1,2.0]
[1617758853058,5.50845,2082.8,2081.3,2.0]
[1617758853256,5.50845,2082.8,2081.4,30.0]
[1617758853656,5.50845,2082.8,2081.5,0.02]
[1617758854056,2.6015,2082.8,2081.5,0.02]
[1617758854457,2.6015,2082.8,2081.8,5.8]
[1617758854657,2.6015,2082.8,2081.5,5.84]
[1617758854857,2.6015,2082.8,2081.5,35.84]
[1617758855057,2.6015,2082.8,2081.9,5.79]
[1617758855257,2.6015,2082.8,2081.6,5.79]
[1617758855458,3.7015,2082.8,2081.6,5.79]
[1617758855659,3.7015,2082.8,2080.7,30.0]
[1617758856057,2.90695,2081.0,2080.9,2.90695]
[1617758856257,5.92205,2081.0,2080.9,2.90695]
[1617758856459,3.0151,2081.0,2080.9,8.95695]
[1617758857259,2.7429,2081.6,2080.9,8.95695]
[1617758858059,2.90695,2081.0,2080.9,8.95695]
[1617758858461,29.2919,2082.7,2080.9,38.95695]
[1617758858660,29.2919,2082.7,2080.9,41.82465]
[1617758859059,28.1919,2082.7,2080.9,41.82465]
[1617758859259,28.1919,2082.7,2080.9,11.82465]
[1617758859460,31.1,2082.6,2080.9,5.77465]
[1617758859658,35.4659,2082.6,2080.9,5.77465]
[1617758859861,35.4659,2082.6,2080.9,2.90695]
[1617758860061,2.90695,2081.0,2080.9,2.90695]
[1617758861061,2.90695,2081.0,2080.9,5.87]
[1617758861262,2.90695,2081.0,2080.3,30.0]
[1617758861461,2.90695,2081.0,2079.0,30.0]
[1617758861863,2.90695,2081.0,2079.1,2.0]
[1617758862064,2.90695,2081.0,2080.8,2.90695]
[1617758862463,1.1,2082.1,2080.9,0.59]
[1617758863065,1.1,2082.1,2080.1,2.1955]
[1617758863264,2.0,2082.0,2080.1,2.1955]
[1617758863665,3.1,2082.0,2080.1,2.1955]
[1617758863866,3.1,2082.0,2080.2,6.03]
[1617758864065,2.90695,2080.7,2080.6,2.90695]
[1617758864467,3.1,2082.0,2080.6,3.85695]
[1617758865971,3.1,2082.0,2080.6,35.88655]
[1617758866171,1.1,2082.0,2081.9,2.90695]
[1617758866375,1.1,2082.0,2081.9,5.17705]
[1617758866576,1.1,2082.0,2081.9,11.10705]
[1617758867175,1.1,2082.0,2081.9,5.17705]
[1617758867774,1.1,2082.0,2081.9,2.90695]
[1617758867975,1.1,2082.0,2081.9,5.11645]
[1617758868176,4.00695,2082.0,2081.9,5.11645]
[1617758868776,1.1,2082.0,2081.9,5.11645]
[1617758868978,2.0,2083.3,2081.9,35.11645]
[1617758868979,1.1,2083.1,2081.9,35.11645]
[1617758869191,12.9285,2083.6,2081.9,41.06645]
[1617758869581,12.9285,2083.6,2081.9,42.02475]
[1617758869778,14.9285,2083.6,2081.9,42.02475]
[1617758869980,14.9285,2083.6,2081.9,41.06645]
[1617758870176,1.1,2083.6,2083.4,2.90695]
[1617758870377,2.02758883,2084.0,2083.4,5.31165]
[1617758870586,3.12758883,2084.0,2083.5,5.98]
[1617758870778,3.1,2084.0,2083.5,5.98]
[1617758870984,1.1,2084.0,2083.5,5.98]
[1617758871477,1.1,2084.0,2083.4,5.31165]
[1617758872078,1.1,2084.0,2083.8,2.90695]
[1617758872678,1.1,2084.2,2083.9,35.9]
[1617758872878,1.1,2084.2,2083.9,37.8249]
[1617758873277,2.571,2084.4,2083.9,37.8249]
[1617758874078,2.571,2084.4,2084.3,2.90695]
[1617758876086,2.571,2084.4,2083.8,2.90695]
[1617758876688,2.571,2084.4,2082.9,30.0]
[1617758876890,4.571,2084.4,2082.9,30.0]
[1617758877091,2.571,2084.4,2082.9,30.0]
[1617758877490,2.571,2084.4,2083.0,6.03]
[1617758877690,2.571,2084.4,2083.0,36.03]
[1617758878091,2.571,2084.4,2084.3,2.90695]
[1617758878290,2.571,2084.4,2084.3,5.21525]
[1617758878492,2.571,2084.4,2084.3,11.01525]
[1617758880695,2.571,2084.4,2084.3,41.01525]
[1617758881898,2.571,2084.4,2084.3,11.01525]
[1617758883699,2.571,2084.4,2084.3,41.01525]
[1617758886099,0.02778493,2085.9,2084.3,43.01525]
[1617758886300,0.02779106,2086.0,2085.8,2.90695]
[1617758886500,0.02779106,2086.0,2085.8,4.75485]
[1617758886701,12.5454,2086.2,2085.8,4.75485]
[1617758886902,0.02780161,2086.3,2085.8,4.75485]
[1617758887105,0.02780161,2086.3,2085.9,5.98]
[1617758887500,0.0278119,2086.4,2085.9,5.98]
[1617758887900,0.02782268,2086.5,2085.9,5.98]
[1617758888300,0.02782268,2086.5,2086.2,2.90695]
[1617758888700,5.54316281,2086.9,2086.2,2.90695]
[1617758888701,0.02782463,2086.7,2086.3,5.87]
[1617758888900,0.02782463,2086.7,2086.3,8.3436]
[1617758889100,0.05564925,2086.8,2086.3,8.3436]
[1617758889101,0.02783066,2086.8,2086.3,8.3436]
[1617758889701,5.098,2086.9,2086.3,8.3436]
[1617758890403,5.098,2086.9,2086.5,2.90695]
[1617758892304,2.90695,2086.6,2086.5,2.90695]
[1617758892705,2.90695,2086.6,2086.5,8.76695]
[1617758893105,5.098,2086.9,2086.5,8.76695]
[1617758893905,5.098,2086.9,2086.5,2.90695]
[1617758894305,2.90695,2086.6,2086.5,2.90695]
[1617758894905,5.098,2086.9,2086.5,8.71695]
[1617758895105,5.098,2086.9,2086.5,11.33975]
[1617758896305,8.00495,2086.9,2086.8,2.90695]
[1617758896706,8.00495,2086.9,2086.8,8.89695]
[1617758897107,5.098,2086.9,2086.8,8.89695]
[1617758897309,25.0123,2087.8,2086.8,8.89695]
[1617758897507,12.5517,2087.8,2086.8,8.89695]
[1617758898310,1.1,2088.0,2087.5,2.90695]
[1617758898511,0.02790898,2088.2,2087.5,5.76165]
[1617758898711,0.02790898,2088.2,2087.6,5.78]
[1617758899112,0.02792659,2088.3,2087.6,5.78]
[1617758899514,0.02794338,2088.5,2087.6,5.78]
[1617758900314,2.90695,2088.1,2088.0,2.90695]
[1617758900915,2.90695,2088.1,2088.0,6.77695]
[1617758901915,5.098,2088.8,2088.0,6.77695]
[1617758902317,5.098,2088.8,2088.4,2.90695]
[1617758903918,6.0567,2088.8,2088.4,2.90695]
[1617758904118,5.098,2088.8,2088.4,2.90695]
[1617758904317,5.098,2088.8,2088.5,5.87]
[1617758906422,5.098,2088.8,2088.7,2.90695]
[1617758906824,5.098,2088.8,2088.7,8.71695]
[1617758907224,0.02779285,2089.6,2088.7,8.71695]
[1617758907425,1.1,2089.5,2088.7,8.71695]
[1617758908426,2.90695,2088.8,2088.7,8.71695]
[1617758908827,3.86545,2088.8,2088.7,8.71695]
[1617758909026,7.618,2090.0,2088.7,8.71695]
[1617758909227,8.718,2090.0,2088.7,8.71695]
[1617758910426,8.718,2090.0,2089.0,2.90695]
[1617758911027,8.718,2090.0,2086.8,30.0]
[1617758911229,10.6547,2090.0,2086.8,30.0]
[1617758911628,10.68247254,2090.0,2086.9,5.82]
[1617758911829,12.9702,2089.9,2086.9,5.82]
[1617758912028,14.0702,2089.9,2086.9,35.82]
[1617758912428,14.0702,2089.9,2088.1,2.90695]
[1617758912628,14.0702,2089.9,2087.0,5.92]
[1617758912929,14.0702,2089.9,2088.2,5.89]
[1617758913330,14.0702,2089.9,2087.0,5.84]
[1617758913528,14.0702,2089.9,2087.1,30.0]
[1617758913733,14.0702,2089.9,2087.2,5.76]
[1617758913933,14.0702,2089.9,2087.2,35.76]
[1617758914133,14.0702,2089.9,2087.2,30.0]
[1617758914533,14.0702,2089.9,2088.9,2.90695]
[1617758915335,14.0702,2089.9,2089.0,5.78]
[1617758915734,14.0702,2089.9,2088.6,2.8093]
[1617758916136,14.0702,2089.9,2089.0,5.92]
[1617758916335,14.0702,2089.9,2088.7,5.8]
[1617758916535,12.9702,2089.9,2089.1,2.90695]
[1617758916735,12.9702,2089.9,2089.1,11.45265]
[1617758916935,12.9702,2089.9,2089.1,5.65265]
[1617758917336,12.9702,2089.9,2089.2,5.97]
[1617758917536,10.189,2090.0,2089.1,5.65265]
[1617758917837,10.189,2090.0,2089.2,5.83]
[1617758918436,2.90695,2089.3,2089.2,5.83]
[1617758919940,2.90695,2089.3,2082.0,18.06779247]
[1617758920140,2.90695,2089.3,2088.0,30.0]
[1617758920543,2.1571,2089.7,2088.6,2.90695]
[1617758920943,3.2571,2089.7,2088.6,2.90695]
[1617758921941,3.2571,2089.7,2088.7,5.99]
[1617758922343,1.1,2089.7,2088.7,5.99]
[1617758922543,2.90695,2088.8,2088.7,5.99]
[1617758923144,1.1,2089.7,2088.7,5.99]
[1617758924643,1.1,2089.7,2088.9,2.90695]
[1617758924843,1.1,2089.7,2089.0,5.79]
[1617758925048,1.1,2089.7,2089.1,30.0]
[1617758925245,1.1,2089.7,2089.2,6.0]
[1617758925645,1.1,2089.7,2089.3,2.0]
[1617758926045,1.1,2089.7,2089.4,5.8]
[1617758926244,1.1,2089.7,2089.4,8.6837]
[1617758926645,4.00695,2089.7,2089.6,2.90695]
[1617758926843,2.90695,2089.7,2089.6,2.90695]
[1617758927044,2.90695,2089.7,2089.6,10.83695]
[1617758928346,2.90695,2089.7,2089.6,40.83695]
[1617758928944,6.198,2090.8,2089.6,40.83695]
[1617758930246,1.1,2090.8,2089.6,40.83695]
[1617758930651,1.1,2090.8,2090.1,2.90695]
[1617758930850,1.1,2090.8,2090.1,7.71065]
[1617758931048,1.1,2090.8,2090.2,5.74]
[1617758932047,16.6999,2091.4,2090.2,5.74]
[1617758932450,17.6679,2091.4,2090.2,5.74]
[1617758932649,2.90695,2090.3,2090.2,5.74]
[1617758932848,3.85185,2090.3,2090.2,5.74]
[1617758935052,2.90695,2090.3,2090.2,5.74]
[1617758937155,3.86595,2090.3,2090.2,5.74]
[1617758937355,2.90695,2090.3,2090.2,5.74]
[1617758942563,3.671,2091.4,2090.2,35.74]
[1617758942766,4.00695,2091.3,2091.2,2.90695]
[1617758942964,1.1,2091.3,2091.2,10.67685]
[1617758944865,1.1,2091.3,2091.2,40.67685]
[1617758947172,1.1,2091.3,2091.2,10.67685]
[1617758947374,1.1,2091.3,2091.2,7.7699]
[1617758947578,1.1,2091.3,2090.5,30.0]
[1617758947772,3.9696,2091.3,2090.5,30.0]
[1617758947972,3.9696,2091.3,2090.2,30.0]
[1617758948172,3.9696,2091.3,2090.6,5.74]
[1617758948572,3.9696,2091.3,2090.2,35.92]
[1617758948773,3.9696,2091.3,2091.1,2.90695]
[1617758950773,1.1,2091.3,2091.1,2.90695]
[1617758953374,1.1,2091.3,2091.1,32.90695]
[1617758953574,1.1,2091.3,2091.2,5.85]
[1617758953775,1.1,2091.3,2091.2,35.85]
[1617758955576,1.1,2091.3,2091.2,5.85]
[1617758955975,1.1,2091.3,2091.1,2.90695]
[1617758956977,2.90695,2091.2,2091.1,2.90695]
[1617758957378,1.1,2091.3,2091.1,2.90695]
[1617758957779,1.1,2091.3,2091.2,5.85]
[1617758958182,1.1,2091.3,2091.1,2.90695]
[1617758959085,1.1,2091.3,2091.2,5.99]
[1617758959287,1.1,2091.3,2091.2,8.474]
[1617758960087,1.1,2091.3,2091.2,2.484]
[1617758960286,1.1,2091.3,2091.1,2.90695]
[1617758960686,1.1,2091.3,2090.2,30.0]
[1617758960889,1.1,2091.3,2089.6,30.0]
[1617758961487,1.1,2091.3,2089.7,5.89]
[1617758961686,1.1,2091.3,2089.8,30.0]
[1617758961889,1.1,2091.3,2089.9,5.89]
[1617758962088,1.1,2091.3,2090.0,30.0]
[1617758962293,1.1,2091.3,2090.1,6.03]
[1617758962687,1.1,2091.3,2089.1,30.0]
[1617758962688,1.1,2091.3,2089.1,32.0]
[1617758962891,1.1,2091.3,2089.5,2.90695]
[1617758962892,2.90695,2090.0,2089.5,2.90695]
[1617758963092,5.75845,2090.0,2089.5,2.90695]
[1617758963290,5.75845,2090.0,2089.6,5.89]
[1617758963688,5.75845,2090.0,2089.5,2.90695]
[1617758964489,2.8515,2090.0,2089.6,5.87]
[1617758964689,3.6275,2090.9,2089.6,5.87]
[1617758965089,3.6275,2090.9,2090.4,2.90695]
[1617758965488,1.1,2090.9,2090.4,2.90695]
[1617758967090,4.00695,2090.5,2090.4,2.90695]
[1617758969595,1.1,2090.5,2090.4,2.90695]
[1617758969794,1.1,2090.5,2090.4,8.85695]
[1617758970195,4.571,2091.5,2090.4,8.85695]
[1617758970196,5.671,2091.5,2090.4,8.85695]
[1617758970393,5.671,2091.5,2090.4,10.96265]
[1617758970794,3.671,2091.5,2090.4,10.96265]
[1617758970995,3.671,2091.5,2091.2,2.90695]
[1617758972397,3.671,2091.5,2091.3,5.81]
[1617758972797,3.671,2091.5,2091.2,2.90695]
[1617758972997,6.57795,2091.5,2091.2,2.90695]
[1617758973298,6.57795,2091.5,2091.3,5.97]
[1617758973497,7.52825,2091.5,2091.3,5.97]
[1617758973699,6.57795,2091.5,2091.3,5.97]
[1617758974998,6.57795,2091.5,2091.1,1.8418]
[1617758975199,6.57795,2091.5,2091.0,2.90695]
[1617758975399,9.48885,2091.5,2091.0,2.90695]
[1617758975800,9.48885,2091.5,2089.5,2.0]
[1617758975998,9.48885,2091.5,2089.6,30.0]
[1617758976399,9.48885,2091.5,2089.7,5.94]
[1617758976598,9.48885,2091.5,2089.7,37.94]
[1617758976798,9.48885,2091.5,2089.7,32.0]
[1617758976998,6.5819,2091.5,2090.7,2.90695]
[1617758978000,6.5819,2091.5,2090.8,5.89]
[1617758978800,3.671,2091.5,2090.8,5.89]
[1617758979200,2.90695,2090.9,2090.8,5.89]
[1617758980300,5.55105,2090.9,2090.0,30.0]
[1617758980501,5.55105,2090.9,2089.3,2.0]
[1617758980702,5.55105,2090.9,2089.5,2.0]
[1617758980903,5.55105,2090.9,2089.5,32.0]
[1617758981103,2.6441,2090.9,2090.5,2.90695]
[1617758981706,5.6903,2091.5,2090.5,2.90695]
[1617758982907,5.6903,2091.5,2089.5,32.0]
[1617758983106,5.6903,2091.5,2090.3,2.90695]
[1617758985109,2.90695,2090.4,2090.3,2.90695]
[1617758986510,2.90695,2090.4,2089.0,32.0]
[1617758986710,2.90695,2090.4,2089.0,30.0]
[1617758987111,3.3842,2090.8,2089.6,2.90695]
[1617758989112,3.3842,2090.8,2089.9,2.90695]
[1617758989312,1.1,2090.8,2089.9,2.90695]
[1617758989712,1.1,2090.8,2090.0,2.64]
[1617758990712,13.506,2092.2,2090.0,2.64]
[1617758990914,2.0,2092.1,2090.0,2.64]
[1617758991113,3.1,2092.1,2090.7,2.90695]
[1617758991514,3.1,2092.1,2090.1,1.932]
[1617758991915,33.1,2092.1,2090.1,1.932]
[1617758992215,33.1,2092.1,2090.2,5.89]
[1617758992814,33.1,2092.1,2090.0,5.76]
[1617758993216,33.1,2092.1,2090.4,2.90695]
[1617758993417,33.17556712,2092.1,2090.4,2.90695]
[1617758993817,33.17556712,2092.1,2090.5,5.88]
[1617758994217,0.05556522,2092.0,2090.5,5.88]
[1617758995018,3.12,2092.1,2090.5,5.88]
[1617758995218,4.00695,2091.5,2091.3,2.90695]
[1617758995419,1.1,2091.5,2091.3,4.95275]
[1617758995620,1.1,2091.5,2091.4,6.01]
[1617758996221,1.1,2091.5,2091.3,2.0458]
[1617758996623,1.1,2091.5,2090.6,30.0]
[1617758997220,1.1,2091.5,2091.1,2.90695]
[1617758998020,1.1,2091.5,2091.0,2.5794]
[1617758998824,1.1,2091.5,2091.1,5.96]
[1617758999225,2.90695,2091.2,2090.5,2.763]
[1617758999825,2.90695,2091.2,2090.1,32.0]
[1617759000025,2.90695,2091.2,2090.6,5.85]
[1617759000225,2.90695,2091.2,2090.2,5.97]
[1617759000425,2.90695,2091.2,2090.2,38.2405]
[1617759000626,2.90695,2091.2,2090.7,5.97]
[1617759000828,2.90695,2091.2,2090.2,32.2705]
[1617759000829,2.90695,2091.2,2090.3,5.8]
[1617759001226,0.02,2091.4,2090.4,2.90695]
[1617759001626,0.9766,2091.4,2090.5,5.73]
[1617759001827,0.9766,2091.4,2090.4,2.90695]
[1617759001828,3.12,2091.4,2090.4,2.90695]
[1617759002927,3.12,2091.4,2089.7,30.0]
[1617759003330,3.12,2091.4,2089.9,2.90695]
[1617759003528,3.12,2091.4,2089.3,30.0]
[1617759003729,4.0631,2091.4,2090.0,5.81]
[1617759004129,34.0631,2091.4,2090.0,5.81]
[1617759004329,34.0631,2091.4,2089.3,30.0]
[1617759004530,34.11894175,2091.4,2088.6,2.0]
[1617759004729,0.05580782,2091.2,2088.6,2.0]
[1617759005132,0.05583433,2091.0,2088.5,2.0]
[1617759005329,2.0,2090.9,2089.1,2.90695]
[1617759005530,0.05583985,2090.8,2089.1,2.90695]
[1617759005730,0.05583985,2090.8,2089.2,0.41]
[1617759005933,30.05583985,2090.8,2089.2,0.41]
[1617759006131,2.0,2090.7,2089.2,0.41]
[1617759006332,33.1,2090.7,2089.2,0.41]
[1617759006531,33.1,2090.7,2089.1,2.90695]
[1617759006731,33.15588941,2090.7,2089.1,2.90695]
[1617759006931,33.15588941,2090.7,2088.5,30.0]
[1617759007533,0.05589778,2090.6,2088.5,30.0]
[1617759007732,0.05589778,2090.6,2088.6,6.01]
[1617759008132,33.1558809,2090.7,2088.6,6.01]
[1617759008534,33.1558809,2090.7,2088.3,2.0]
[1617759008733,33.1558809,2090.7,2088.4,32.0]
[1617759008932,33.1558809,2090.7,2088.7,5.97]
[1617759009135,33.1558809,2090.7,2088.5,0.1]
[1617759009333,33.1558809,2090.7,2089.1,2.90695]